fUSD/lending_fUSD_20251001
["ID","MTS","AMOUNT","RATE_DAILY","PERIOD"]
[388649477,1759296705929,-500.0,0.00025205,2]
[388649478,1759296705939,-3242.79,0.00025205,2]
[388649479,1759296705948,-4626.85,0.00025205,2]
[388649480,1759296705959,-3688.84,0.00025205,2]
[388649481,1759296705968,-500.0,0.00025205,2]
[388649482,1759296705978,-764.23,0.00025205,2]
[388649483,1759296705987,-5299.97,0.00025205,2]
[388649484,1759296705997,-500.0,0.00025205,2]
[388649485,1759296706006,-1312.6,0.00025205,2]
[388649486,1759296706015,-1983.75,0.00025205,2]
[388649487,1759296706024,-2793.6,0.00025205,2]
[388649488,1759296706034,-500.0,0.00025205,2]
[388649489,1759296706043,-671.39,0.00025205,2]
[388649490,1759296706053,-500.0,0.00025205,2]
[388649491,1759296706063,-3455.67,0.00025205,2]
[388649492,1759296706072,-3658.05,0.00025205,2]
[388649493,1759296706082,-2858.06,0.00025205,2]
[388649494,1759296706091,-4384.97,0.00025205,2]
[388649495,1759296706101,-1170.53,0.00025205,2]
[388649496,1759296706110,-500.0,0.00025205,2]
[388649497,1759296706120,-3454.33,0.00025205,2]
[388649498,1759296706129,-1141.39,0.00025205,2]
[388649499,1759296706143,-6322.98,0.00025205,2]
[388649500,1759296706152,-1149.07,0.00025205,2]
[388649501,1759296706162,-223.95002902,0.00025205,2]
[388649502,1759296706172,-500.0,0.00025205,2]
[388649503,1759296706181,-4649.29,0.00025205,2]
[388649504,1759296706191,-2328.41,0.00025205,2]
[388649505,1759296706201,-500.0,0.00025205,2]
[388649506,1759296706211,-500.0,0.00025205,2]
[388649507,1759296706221,-500.0,0.00025205,2]
[388649508,1759296706230,-4813.23,0.00025205,2]
[388649509,1759296706240,-928.44,0.00025205,2]
[388649510,1759296706250,-885.49,0.00025205,2]
[388649511,1759296706259,-2140.79,0.00025205,2]
[388649512,1759296706269,-500.0,0.00025205,2]
[388649513,1759296706278,-888.08,0.00025205,2]
[388649514,1759296706287,-500.0,0.00025205,2]
[388649515,1759296706297,-4117.91,0.00025205,2]
[388649516,1759296706307,-500.0,0.00025205,2]
[388649517,1759296706317,-500.0,0.00025205,2]
[388649518,1759296706327,-6200.23,0.00025205,2]
[388649519,1759296706338,-500.0,0.00025205,2]
[388649520,1759296706347,-5688.23,0.00025205,2]
[388649521,1759296706356,-500.0,0.00025205,2]
[388649522,1759296706367,-500.0,0.00025205,2]
[388649523,1759296706376,-500.0,0.00025205,2]
[388649524,1759296706386,-500.0,0.00025205,2]
[388649525,1759296706399,-2797.24,0.00025205,2]
[388649526,1759296706409,-3098.93,0.00025205,2]
[388649527,1759296706420,-500.0,0.00025205,2]
[388649528,1759296706429,-702.75,0.00025205,2]
[388649529,1759296706438,-6322.53,0.00025205,2]
[388649530,1759296706448,-500.0,0.00025205,2]
[388649531,1759296706459,-757.21,0.00025205,2]
[388649532,1759296706468,-500.0,0.00025205,2]
[388649533,1759296706482,-500.0,0.00025205,2]
[388649534,1759296706492,-500.0,0.00025205,2]
[388649535,1759296706506,-500.0,0.00025205,2]
[388649536,1759296706516,-973.97,0.00025205,2]
[388649537,1759296706526,-5333.31,0.00025205,2]
[388649538,1759296706536,-500.0,0.00025205,2]
[388649539,1759296706546,-6864.09,0.00025205,2]
[388649540,1759296706556,-500.0,0.00025205,2]
[388649541,1759296706566,-505.82117202,0.00025205,2]
[388649542,1759296706576,-23607.86,0.00025205,2]
[388649543,1759296706587,-3676.16,0.00025205,2]
[388649544,1759296706596,-500.0,0.00025205,2]
[388649545,1759296706606,-4625.58,0.00025205,2]
[388649546,1759296706616,-4139.19,0.00025205,2]
[388649547,1759296706627,-3981.15,0.00025205,2]
[388649548,1759296706637,-2196.76,0.00025205,2]
[388649549,1759296706646,-336.9,0.00025205,2]
[388649550,1759296706656,-540.09426835,0.00025205,2]
[388649551,1759296706667,-588.61,0.00025205,2]
[388649552,1759296706682,-2770.68,0.00025205,2]
[388649553,1759296706694,-980.97,0.00025205,2]
[388649554,1759296706704,-500.0,0.00025205,2]
[388649555,1759296706714,-500.0,0.00025205,2]
[388649556,1759296706727,-32503.59,0.00025205,2]
[388649557,1759296706738,-500.0,0.00025205,2]
[388649558,1759296706748,-1439.41,0.00025205,2]
[388649559,1759296706761,-500.0,0.00025205,2]
[388649560,1759296706770,-1542.36,0.00025205,2]
[388649561,1759296706780,-718.01,0.00025205,2]
[388649562,1759296706789,-1846.72,0.00025205,2]
[388649563,1759296706799,-784.82,0.00025205,2]
[388649564,1759296706809,-790.69,0.00025205,2]
[388649565,1759296706822,-4249.82,0.00025205,2]
[388649566,1759296706832,-500.0,0.00025205,2]
[388649567,1759296706842,-1511.67,0.00025205,2]
[388649568,1759296706852,-510.26,0.00025205,2]
[388649569,1759296706862,-2909.97,0.00025205,2]
[388649570,1759296706872,-3507.67,0.00025205,2]
[388649571,1759296706882,-500.0,0.00025205,2]
[388649572,1759296706893,-5083.43,0.00025205,2]
[388649573,1759296706915,-3522.44,0.00025205,2]
[388649574,1759296706928,-2651.28,0.00025205,2]
[388649575,1759296706938,-8028.11,0.00025205,2]
[388649576,1759296706948,-2352.68,0.00025205,2]
[388649577,1759296706958,-3883.87,0.00025205,2]
[388649578,1759296706967,-7303.76,0.00025205,2]
[388649579,1759296706976,-533.14,0.00025205,2]
[388649580,1759296706986,-500.0,0.00025205,2]
[388649581,1759296706996,-565.74,0.00025205,2]
[388649582,1759296707006,-669.09,0.00025205,2]
[388649583,1759296707016,-3824.87,0.00025205,2]
[388649584,1759296707026,-500.0,0.00025205,2]
[388649585,1759296707036,-1411.08,0.00025205,2]
[388649586,1759296707046,-2588.45,0.00025205,2]
[388649587,1759296707056,-2905.33,0.00025205,2]
[388649588,1759296707068,-500.0,0.00025205,2]
[388649589,1759296707078,-448.05048308,0.00025205,2]
[388649590,1759296707089,-3714.24,0.00025205,2]
[388649591,1759296707099,-938.66,0.00025205,2]
[388649592,1759296707110,-3909.69,0.00025205,2]
[388649593,1759296707120,-547.26,0.00025205,2]
[388649594,1759296707130,-3292.47,0.00025205,2]
[388649595,1759296707140,-2819.33,0.00025205,2]
[388649596,1759296707150,-11378.88,0.00025205,2]
[388649597,1759296707160,-1214.51,0.00025205,2]
[388649598,1759296707170,-1033.5,0.00025205,2]
[388649599,1759296707179,-3278.37,0.00025205,2]
[388649600,1759296707189,-1184.38,0.00025205,2]
[388649601,1759296707199,-2959.05,0.00025205,2]
[388649602,1759296707208,-317.78571704,0.00025205,2]
[388649603,1759296707218,-1901.54,0.00025205,2]
[388649604,1759296707227,-3419.5,0.00025205,2]
[388649605,1759296707237,-5370.83,0.00025205,2]
[388649606,1759296707247,-1641.66,0.00025205,2]
[388649607,1759296707257,-500.0,0.00025205,2]
[388649608,1759296707267,-6535.21,0.00025205,2]
[388649609,1759296707277,-846.89,0.00025205,2]
[388649610,1759296707287,-500.0,0.00025205,2]
[388649611,1759296707297,-500.0,0.00025205,2]
[388649612,1759296707307,-1561.23,0.00025205,2]
[388649613,1759296707316,-3879.78,0.00025205,2]
[388649614,1759296707326,-4415.39,0.00025205,2]
[388649615,1759296707335,-16986.17,0.00025205,2]
[388649616,1759296707345,-500.0,0.00025205,2]
[388649617,1759296707354,-912.9,0.00025205,2]
[388649618,1759296707363,-2994.99,0.00025205,2]
[388649619,1759296707373,-599.92,0.00025205,2]
[388649620,1759296707382,-1967.69,0.00025205,2]
[388649621,1759296707391,-500.0,0.00025205,2]
[388649622,1759296707401,-421.08201431,0.00025205,2]
[388649623,1759296707410,-803.23,0.00025205,2]
[388649624,1759296707420,-5804.84,0.00025205,2]
[388649625,1759296707430,-4854.59,0.00025205,2]
[388649626,1759296707439,-4971.72,0.00025205,2]
[388649627,1759296707448,-1023.11,0.00025205,2]
[388649628,1759296707458,-4655.06,0.00025205,2]
[388649629,1759296707467,-3415.88,0.00025205,2]
[388649630,1759296707477,-500.0,0.00025205,2]
[388649631,1759296707486,-1188.59,0.00025205,2]
[388649632,1759296707496,-529.9,0.00025205,2]
[388649633,1759296707506,-500.0,0.00025205,2]
[388649634,1759296707526,-4987.43,0.00025205,2]
[388649635,1759296707536,-830.06,0.00025205,2]
[388649636,1759296707546,-1314.7,0.00025205,2]
[388649637,1759296707556,-500.0,0.00025205,2]
[388649638,1759296707566,-500.0,0.00025205,2]
[388649639,1759296707576,-500.0,0.00025205,2]
[388649640,1759296707587,-2216.62,0.00025205,2]
[388649641,1759296707597,-880.11,0.00025205,2]
[388649642,1759296707607,-4444.64,0.00025205,2]
[388649643,1759296707617,-7726.99,0.00025205,2]
[388649644,1759296707627,-500.0,0.00025205,2]
[388649645,1759296707638,-2056.8,0.00025205,2]
[388649646,1759296707648,-3982.35,0.00025205,2]
[388649647,1759296707658,-500.0,0.00025205,2]
[388649648,1759296707668,-6520.06,0.00025205,2]
[388649649,1759296707681,-1714.22,0.00025205,2]
[388649650,1759296707691,-524.61,0.00025205,2]
[388649651,1759296707701,-1017.71,0.00025205,2]
[388649652,1759296707711,-3414.97,0.00025205,2]
[388649653,1759296707723,-335.35070476,0.00025205,2]
[388649654,1759296707733,-4097.56,0.00025205,2]
[388649655,1759296707742,-1128.77,0.00025205,2]
[388649656,1759296707753,-18259.78,0.00025205,2]
[388649657,1759296707763,-500.0,0.00025205,2]
[388649658,1759296707772,-500.0,0.00025205,2]
[388649659,1759296707782,-769.46,0.00025205,2]
[388649660,1759296707792,-2710.09,0.00025205,2]
[388649661,1759296707802,-1287.28,0.00025205,2]
[388649662,1759296707812,-643.2,0.00025205,2]
[388649663,1759296707823,-623.35,0.00025205,2]
[388649664,1759296707832,-6110.74,0.00025205,2]
[388649665,1759296707842,-500.0,0.00025205,2]
[388649666,1759296707851,-2080.75,0.00025205,2]
[388649667,1759296707861,-500.0,0.00025205,2]
[388649668,1759296707871,-3677.57,0.00025205,2]
[388649669,1759296707881,-4120.75,0.00025205,2]
[388649670,1759296707891,-11295.16,0.00025205,2]
[388649671,1759296707900,-603.04,0.00025205,2]
[388649672,1759296708290,-2851.45,0.00025205,2]
[388649673,1759296708352,-500.0,0.00025205,2]
[388649674,1759296708361,-1280.75,0.00025205,2]
[388649675,1759296708371,-2882.75,0.00025205,2]
[388649676,1759296708381,-18899.18,0.00025205,2]
[388649677,1759296708391,-500.0,0.00025205,2]
[388649678,1759296708400,-630.31,0.00025205,2]
[388649679,1759296708410,-3980.13,0.00025205,2]
[388649680,1759296708420,-516.52304492,0.00025205,2]
[388649681,1759296708430,-6430.35,0.00025205,2]
[388649682,1759296708440,-500.0,0.00025205,2]
[388649683,1759296708449,-2836.61,0.00025205,2]
[388649684,1759296708459,-680.35,0.00025205,2]
[388649685,1759296708468,-500.0,0.00025205,2]
[388649686,1759296708478,-4298.07,0.00025205,2]
[388649687,1759296708488,-500.0,0.00025205,2]
[388649688,1759296708498,-500.0,0.00025205,2]
[388649689,1759296708508,-500.0,0.00025205,2]
[388649690,1759296708517,-3734.57,0.00025205,2]
[388649691,1759296708527,-500.0,0.00025205,2]
[388649692,1759296708536,-500.0,0.00025205,2]
[388649693,1759296708546,-1309.12047992,0.00025205,2]
[388649694,1759296709095,-158.46952008,0.00025205,2]
[388649695,1759296709105,-373.89387982,0.00025205,2]
[388649696,1759296709117,-2545.75612018,0.00025205,2]
[388649697,1759296709126,-5180.27,0.00025205,2]
[388649698,1759296709136,-2353.18,0.00025205,2]
[388649699,1759296709146,-2702.69,0.00025205,2]
[388649700,1759296709156,-975.84,0.00025205,2]
[388649701,1759296709166,-31992.54,0.00025205,2]
[388649702,1759296709176,-2899.78,0.00025205,2]
[388649703,1759296709186,-1131.96,0.00025205,2]
[388649704,1759296709195,-500.0,0.00025205,2]
[388649705,1759296709204,-9590.02,0.00025205,2]
[388649706,1759296709214,-500.0,0.00025205,2]
[388649707,1759296709223,-500.0,0.00025205,2]
[388649708,1759296709233,-500.0,0.00025205,2]
[388649709,1759296709242,-2188.2,0.00025205,2]
[388649710,1759296709251,-500.0,0.00025205,2]
[388649711,1759296709261,-3436.55,0.00025205,2]
[388649712,1759296709270,-524.70408511,0.00025205,2]
[388649713,1759296709279,-2149.39,0.00025205,2]
[388649714,1759296709289,-4196.72,0.00025205,2]
[388649715,1759296709299,-599.96,0.00025205,2]
[388649716,1759296709308,-17374.57,0.00025205,2]
[388649717,1759296709318,-784.05,0.00025205,2]
[388649718,1759296709327,-1015.23,0.00025205,2]
[388649719,1759296709335,-217.9494147,0.00025205,2]
[388649720,1759296713764,250.0,9.644e-05,2]
[388649721,1759296714658,1426.69841459,0.00012834,2]
[388649722,1759296714691,526.15497699,0.00012834,2]
[388649723,1759296715209,195.0,0.00014542,2]
[388649724,1759296724955,250.0,0.00010201,2]
[388649725,1759296766114,250.49971746,0.00014281,2]
[388649727,1759296930564,4114.0,0.00026,120]
[388649732,1759297796278,-254.75939455,0.00017377,2]
[388649733,1759297796306,-671.43018013,0.00017393,2]
[388649734,1759297796337,-254.75939455,0.00017405,2]
[388649735,1759297796365,-254.75939455,0.00017426,2]
[388649736,1759297796391,-254.75939455,0.00017452,2]
[388649737,1759297796423,-671.43018013,0.00017457,2]
[388649738,1759297796449,-254.75939455,0.00017461,2]
[388649739,1759297796476,-671.43018013,0.00017471,2]
[388649740,1759297796503,-671.43018013,0.00017473,2]
[388649741,1759297796531,-671.43018013,0.00017488,2]
[388649757,1759297832131,-384.007304,0.00018356,2]
[388649758,1759297832141,-500.0,0.00018449,2]
[388649759,1759297832151,-193.7062584,0.00018527,2]
[388649760,1759297832160,-246.76165535,0.00018571,2]
[388649761,1759297832169,-234.61,0.00018665,2]
[388649762,1759297832179,-194.0,0.00018705,2]
[388649763,1759297832188,-1200.0,0.00018705,2]
[388649764,1759297832197,-322.6107,0.00018706,2]
[388649765,1759297832206,-500.0,0.00018706,2]
[388649766,1759297832215,-500.0,0.00018706,2]
[388649767,1759297832224,-239.84119403,0.00018706,2]
[388649768,1759297832234,-500.0,0.00018706,2]
[388649769,1759297832243,-500.0,0.00018706,2]
[388649770,1759297832253,-500.0,0.00018706,2]
[388649771,1759297832263,-500.0,0.00018706,2]
[388649772,1759297832272,-500.0,0.00018706,2]
[388649774,1759297832282,-500.0,0.00018706,2]
[388649776,1759297832291,-500.0,0.00018706,2]
[388649778,1759297832300,-500.0,0.00018706,2]
[388649779,1759297832310,-500.0,0.00018706,2]
[388649782,1759297832320,-500.0,0.00018706,2]
[388649783,1759297832329,-500.0,0.00018706,2]
[388649785,1759297832338,-500.0,0.00018706,2]
[388649787,1759297832348,-500.0,0.00018706,2]
[388649788,1759297832357,-556.65833547,0.00018706,2]
[388649790,1759297832367,-500.0,0.00018706,2]
[388649792,1759297832376,-500.0,0.00018706,2]
[388649794,1759297832388,-500.0,0.00018706,2]
[388649796,1759297832399,-500.0,0.00018706,2]
[388649798,1759297832408,-500.0,0.00018706,2]
[388649799,1759297832417,-500.0,0.00018706,2]
[388649800,1759297832426,-500.0,0.00018706,2]
[388649802,1759297832438,-500.0,0.00018706,2]
[388649803,1759297832447,-500.0,0.00018706,2]
[388649804,1759297832456,-500.0,0.00018706,2]
[388649805,1759297832466,-500.0,0.00018706,2]
[388649806,1759297832476,-331.11019284,0.00018706,2]
[388649807,1759297832500,-139.84386328,0.00018706,2]
[388649808,1759297832510,-370.35923647,0.00018725,2]
[388649809,1759297832519,-234.61,0.00018939,2]
[388649810,1759297832529,-234.61,0.00019213,2]
[388649811,1759297832538,-4579.77049843,0.00019252,2]
[388649812,1759297832548,-376.78550673,0.00019252,2]
[388649813,1759297832563,-43.44399484,0.00019252,2]
[388649814,1759297832572,-168.16,0.00019279,2]
[388649815,1759297832581,-530.87,0.00019447,2]
[388649816,1759297832590,-335.10457548,0.000196,2]
[388649817,1759297832638,-31.56542452,0.000196,2]
[388649818,1759297832648,-257.81,0.00019715,2]
[388649819,1759297832657,-611.72632191,0.0001974,2]
[388649820,1759297832717,-916.72,0.0001974,2]
[388649821,1759297832745,-1885.38367809,0.0001974,2]
[388649822,1759297832755,-366.67,0.000198,2]
[388649823,1759297832764,-271.9,0.00019942,2]
[388649824,1759297832777,-1582.67,0.0001997,2]
[388649825,1759297832787,-334.5472959,0.00020075,2]
[388649826,1759297832796,-5974.98,0.00020147,2]
[388649827,1759297832807,-500.0,0.00020162,2]
[388649828,1759297832816,-193.70625838,0.00020174,2]
[388649829,1759297832828,-1000.0,0.00020225,2]
[388649830,1759297832840,-500.0,0.00020264,2]
[388649831,1759297832850,-180.15910671,0.00020316,2]
[388649832,1759297832860,-1680.0,0.00020494,2]
[388649833,1759297832870,-1200.0,0.00020546,2]
[388649834,1759297832880,-153.0,0.00020637,2]
[388649835,1759297832890,-153.0,0.00020637,2]
[388649836,1759297832900,-153.0,0.00020637,2]
[388649837,1759297832910,-153.0,0.00020637,2]
[388649838,1759297832921,-153.0,0.00020637,2]
[388649839,1759297832931,-153.0,0.00020637,2]
[388649840,1759297832942,-153.0,0.00020637,2]
[388649841,1759297832954,-153.0,0.00020637,2]
[388649842,1759297832963,-153.0,0.00020637,2]
[388649843,1759297832972,-153.0,0.00020637,2]
[388649844,1759297832982,-153.0,0.00020637,2]
[388649845,1759297832991,-153.0,0.00020637,2]
[388649846,1759297833000,-153.0,0.00020637,2]
[388649847,1759297833009,-153.0,0.00020637,2]
[388649848,1759297833020,-153.0,0.00020637,2]
[388649849,1759297833030,-153.0,0.00020637,2]
[388649850,1759297833039,-153.0,0.00020637,2]
[388649851,1759297833049,-153.0,0.00020637,2]
[388649852,1759297833059,-153.0,0.00020637,2]
[388649853,1759297833068,-153.0,0.00020637,2]
[388649854,1759297833078,-153.0,0.00020637,2]
[388649855,1759297833087,-153.0,0.00020637,2]
[388649856,1759297833096,-153.0,0.00020637,2]
[388649857,1759297833106,-153.0,0.00020637,2]
[388649858,1759297833115,-153.0,0.00020637,2]
[388649859,1759297833125,-153.0,0.00020637,2]
[388649860,1759297833134,-153.0,0.00020637,2]
[388649861,1759297833144,-153.0,0.00020637,2]
[388649862,1759297833153,-153.0,0.00020637,2]
[388649863,1759297833163,-153.0,0.00020637,2]
[388649864,1759297833173,-153.0,0.00020637,2]
[388649865,1759297833182,-153.0,0.00020637,2]
[388649866,1759297833192,-153.0,0.00020637,2]
[388649867,1759297833202,-153.0,0.00020637,2]
[388649868,1759297833211,-153.0,0.00020637,2]
[388649869,1759297833221,-153.0,0.00020637,2]
[388649870,1759297833230,-153.0,0.00020637,2]
[388649871,1759297833240,-153.0,0.00020637,2]
[388649872,1759297833250,-153.0,0.00020637,2]
[388649873,1759297833260,-153.0,0.00020637,2]
[388649874,1759297833271,-153.0,0.00020637,2]
[388649875,1759297833281,-153.0,0.00020637,2]
[388649876,1759297833290,-153.0,0.00020637,2]
[388649877,1759297833300,-153.0,0.00020637,2]
[388649878,1759297833310,-153.0,0.00020637,2]
[388649879,1759297833320,-153.0,0.00020637,2]
[388649880,1759297833330,-153.0,0.00020637,2]
[388649881,1759297833339,-153.0,0.00020637,2]
[388649882,1759297833350,-153.0,0.00020637,2]
[388649883,1759297833360,-153.0,0.00020637,2]
[388649884,1759297833368,-153.0,0.00020637,2]
[388649885,1759297833378,-153.0,0.00020637,2]
[388649886,1759297833387,-153.0,0.00020637,2]
[388649887,1759297833396,-153.0,0.00020637,2]
[388649888,1759297833406,-130.88461442,0.00020637,2]
[388649889,1759297833418,-22.11538558,0.00020637,2]
[388649890,1759297833428,-153.0,0.00020637,2]
[388649891,1759297833437,-153.0,0.00020637,2]
[388649892,1759297833447,-153.0,0.00020637,2]
[388649893,1759297833456,-153.0,0.00020637,2]
[388649894,1759297833466,-153.0,0.00020637,2]
[388649895,1759297833475,-153.0,0.00020637,2]
[388649896,1759297833485,-153.0,0.00020637,2]
[388649897,1759297833494,-538.12,0.000207,7]
[388649898,1759297833504,-262.5,0.00020726,2]
[388649899,1759297833513,-394.25910558,0.00021444,2]
[388649900,1759297833524,-3546.0,0.000215,3]
[388649901,1759297833534,-193.70625838,0.0002182,2]
[388649902,1759297833543,-1200.0,0.00021916,2]
[388649903,1759297833553,-5000.0,0.00021918,2]
[388649904,1759297833563,-452.99935575,0.0002192,2]
[388649905,1759297833572,-787.0,0.00021921,2]
[388649906,1759297833582,-2045.0,0.00021921,2]
[388649907,1759297833591,-3319.07082266,0.00021921,2]
[388649908,1759297833611,-79.92917734,0.00021921,2]
[388649909,1759297833620,-1264.0,0.00021921,2]
[388649910,1759297833629,-4114.0,0.00021921,2]
[388649911,1759297833639,-5094.1529822,0.00021921,2]
[388649912,1759297833651,-2165.94410896,0.00021921,2]
[388649913,1759297833663,-305.42630395,0.00021921,2]
[388649914,1759297837722,-964.4442702,0.00021921,2]
[388649915,1759297837737,-865.69,0.00021921,2]
[388649916,1759297837785,-1163.21102148,0.00021921,2]
[388649917,1759297837796,-351.88118535,0.00021921,2]
[388649918,1759297837845,-1261.60846469,0.00021921,2]
[388649919,1759297838012,-483.96215057,0.00021921,2]
[388649966,1759297840117,-6266.6795126,0.00021921,2]
[388649967,1759297840127,-621.0,0.00021921,2]
[388649968,1759297840136,-6133.0,0.00021921,2]
[388649969,1759297840145,-452.53,0.00021945,30]
[388649970,1759297840154,-2868.72835708,0.000221,5]
[388649971,1759297840311,-2054.86838987,0.000221,5]
[388649983,1759297896934,-2868.72835708,0.000208,2]
[388649984,1759297904942,-452.53,0.000208,2]
[388649985,1759297912329,-153.0,0.00020609,2]
[388649986,1759297912358,-153.0,0.00020609,2]
[388649987,1759297912387,-153.0,0.00020609,2]
[388649988,1759297912415,-153.0,0.00020609,2]
[388649989,1759297912445,-153.0,0.00020609,2]
[388649990,1759297912472,-153.0,0.000208,2]
[388649991,1759297912491,-153.0,0.000208,2]
[388649992,1759297912503,-153.0,0.000208,2]
[388649993,1759297912520,-153.0,0.000208,2]
[388649994,1759297912536,-153.0,0.000208,2]
[388649995,1759297912560,-4603.0,0.000208,2]
[388649996,1759297919375,-6266.6795126,0.000208,2]
[388649997,1759297926510,-136.69,0.000208,7]
[388649998,1759297926554,-347.62,0.000208,7]
[388649999,1759297926563,-136.69,0.000208,2]
[388650001,1759298119891,3883.84753297,0.0003013,120]
[388650040,1759298257172,660.68,0.00010377,2]
[388650041,1759298258378,660.68,0.00010923,2]
[388650042,1759298258469,660.68,0.00011469,2]
[388650043,1759298258524,660.68,0.00012016,2]
[388650044,1759298258758,660.68,0.00012562,2]
[388650045,1759298258944,660.68,0.00013108,2]
[388650046,1759298261054,660.68,0.00013654,2]
[388650047,1759298261265,660.68,0.000142,2]
[388650048,1759298261464,83.6121266,0.00014746,2]
[388650049,1759298261500,577.0678734,0.00014746,2]
[388650050,1759298261666,660.68,0.00015293,2]
[388650051,1759298261865,660.68,0.00015839,2]
[388650052,1759298262062,660.68,0.00016385,2]
[388650053,1759298301101,-16.31,0.00016931,2]
[388650054,1759298307652,-153.0,0.00016931,2]
[388650055,1759298314580,-153.0,0.00016931,2]
[388650056,1759298321965,-9.25,0.00016931,2]
[388650057,1759298321987,-329.12,0.00016931,2]
[388650058,1759298343622,-153.0,0.00017,2]
[388650059,1759298350495,-56.0,0.00017,2]
[388650060,1759298350518,-41.0,0.00017,2]
[388650061,1759298355670,318.69,0.00025,60]
[388650063,1759298364196,-153.0,0.00017477,2]
[388650064,1759298374421,-153.0,0.00017477,2]
[388650068,1759298563970,1000.0,0.0003013,120]
[388650069,1759298564214,1000.0,0.0003013,120]
[388650070,1759298564489,1000.0,0.0003013,120]
[388650071,1759298564732,1000.0,0.0003013,120]
[388650072,1759298564992,1000.0,0.0003013,120]
[388650073,1759298565231,1000.0,0.0003013,120]
[388650074,1759298565487,1000.0,0.0003013,120]
[388650075,1759298565728,1000.0,0.0003013,120]
[388650076,1759298566308,1000.0,0.0003013,120]
[388650077,1759298566592,450.18,0.0003013,120]
[388650078,1759298961602,311.562,0.0003,120]
[388650094,1759299032073,-825.99,0.00017,3]
[388650095,1759299032083,-320.51,0.0001726,2]
[388650096,1759299032189,-717.517597,0.0001726,2]
[388650097,1759299032199,-152.336038,0.0001726,2]
[388650098,1759299032210,-354.68,0.00017477,2]
[388650099,1759299032220,-388.845,0.00017488,2]
[388650100,1759299032231,-660.68,0.00018023,2]
[388650101,1759299032245,-184.1099,0.0001847,2]
[388650102,1759299032254,-660.68,0.0001857,2]
[388650103,1759299032264,-868.29561973,0.00018693,2]
[388650104,1759299032276,-660.68,0.00019116,2]
[388650105,1759299032287,-427.44508814,0.00019225,2]
[388650106,1759299032298,-1038.027597,0.00019232,2]
[388650107,1759299032308,-152.336038,0.00019232,2]
[388650108,1759299032320,-660.68,0.00019662,2]
[388650109,1759299032331,-150.0,0.00020164,2]
[388650110,1759299032340,-1382.08423535,0.00020173,2]
[388650111,1759299032350,-500.0,0.00020188,2]
[388650112,1759299032359,-500.0,0.00020188,2]
[388650113,1759299032368,-500.0,0.00020188,2]
[388650114,1759299032377,-500.0,0.00020188,2]
[388650115,1759299032386,-500.0,0.00020188,2]
[388650116,1759299032395,-500.0,0.00020188,2]
[388650117,1759299032405,-500.0,0.00020188,2]
[388650119,1759299032414,-500.0,0.00020188,2]
[388650121,1759299032424,-500.0,0.00020188,2]
[388650122,1759299032433,-500.0,0.00020188,2]
[388650123,1759299032442,-500.0,0.00020188,2]
[388650124,1759299032452,-500.0,0.00020188,2]
[388650125,1759299032461,-500.0,0.00020188,2]
[388650126,1759299032470,-211.673961,0.00020188,2]